fUSD/lending_fUSD_20260227
["ID","MTS","AMOUNT","RATE_DAILY","PERIOD"]
[406834762,1772214647840,-181.08010149,0.00025739,2]
[406834763,1772214647849,-927.27566595,0.00025741,2]
[406834764,1772214647858,-961.58486559,0.00025796,2]
[406834765,1772214647867,-997.16350561,0.00025851,2]
[406834766,1772214647876,-150.0,0.0002589,2]
[406834767,1772214647886,-500.0,0.00025943,2]
[406834768,1772214647895,-200.0,0.00026002,12]
[406834769,1772214647904,-431.66662166,0.00026073,22]
[406834770,1772214647914,-187.78006525,0.00026287,2]
[406834771,1772214647923,-425.32076033,0.0002646,22]
[406834772,1772214647932,-150.36,0.00026484,30]
[406834773,1772214647942,-501.01,0.00026684,2]
[406834774,1772214647951,-647.78,0.00026684,2]
[406834775,1772214647961,-500.0,0.00026684,2]
[406834776,1772214647970,-500.0,0.00026684,2]
[406834777,1772214647979,-194.72792766,0.00026835,2]
[406834778,1772214647988,-225.51659048,0.0002691,2]
[406834779,1772214647997,-1550.99881781,0.00027014,24]
[406834780,1772214648008,-500.0,0.00027096,2]
[406834781,1772214648018,-150.0,0.00027185,2]
[406834782,1772214648026,-201.93286099,0.00027383,2]
[406834783,1772214648035,-500.0,0.00027397,2]
[406834784,1772214648044,-500.0,0.00027397,2]
[406834785,1772214648053,-500.0,0.00027397,2]
[406834786,1772214648063,-500.0,0.00027397,2]
[406834787,1772214648072,-500.0,0.00027397,2]
[406834788,1772214648080,-500.0,0.00027397,2]
[406834789,1772214648090,-500.0,0.00027397,2]
[406834790,1772214648099,-159.00703767,0.00027397,2]
[406834791,1772214648107,-300.0,0.00027397,2]
[406834792,1772214648117,-438.72,0.00027397,20]
[406834793,1772214648126,-151.0,0.00027397,2]
[406834794,1772214648136,-151.0,0.00027397,2]
[406834795,1772214648145,-16685.0,0.00027815,5]
[406834796,1772214648154,-509.0,0.00027912,13]
[406834797,1772214648164,-209.40437684,0.00027931,2]
[406834798,1772214648173,-1848.40754058,0.00028261,27]
[406834799,1772214648183,-2593.11556322,0.00028418,2]
[406834800,1772214648192,-217.15233878,0.00028479,2]
[406834801,1772214648202,-150.0,0.00028544,2]
[406834802,1772214648211,-1338.66642695,0.00028631,28]
[406834803,1772214648222,-150.0,0.00028767,120]
[406834804,1772214648231,-150.36,0.00028767,30]
[406834805,1772214648240,-261.89220117,0.00028822,120]
[406834806,1772214648250,-411.85,0.00028974,7]
[406834807,1772214648259,-225.18697532,0.00029027,2]
[406834808,1772214648268,-500.0,0.00029315,2]
[406834809,1772214648277,-200.0,0.00029416,20]
[406834810,1772214648286,-233.51889341,0.00029575,2]
[406834811,1772214648296,-150.0,0.00029971,2]
[406834812,1772214648305,-500.1553,0.0003,2]
[406834813,1772214648314,-242.15909246,0.00030123,2]
[406834814,1772214648323,-411.86066783,0.00030249,7]
[406834815,1772214648332,-251.11897888,0.00030671,2]
[406834816,1772214648342,-500.0,0.00030902,120]
[406834817,1772214648352,-500.0,0.00030902,120]
[406834818,1772214648363,-203.73,0.00031,30]
[406834819,1772214648372,-150.36,0.0003105,30]
[406834820,1772214648381,-260.4103811,0.00031219,2]
[406834821,1772214648390,-150.0,0.0003147,2]
[406834822,1772214648400,-270.0455652,0.00031767,2]
[406834823,1772214648413,-672.0,0.00031849,30]
[406834824,1772214648423,-1076.0,0.00031849,30]
[406834825,1772214648432,-1600.0,0.000319,11]
[406834826,1772214648442,-250629.88391569,0.00032,120]
[406834827,1772214648615,-11253.45165789,0.00032,120]
[406834828,1772214648643,-14649.56227167,0.00032,120]
[406834829,1772214648658,-1150.5,0.00032,120]
[406834830,1772214648713,-10326.1560269,0.00032,120]
[406834831,1772214648724,-35946.1828283,0.00032,120]
[406834832,1772214648736,-2181.6696588,0.00032,120]
[406834833,1772214648751,-4000.0,0.00032,120]
[406834834,1772214648773,-249647.74898439,0.00032,120]
[406834835,1772214648783,-151.0,0.00032,7]
[406834836,1772214648792,-151.0,0.00032,7]
[406834837,1772214648802,-151.0,0.00032,7]
[406834838,1772214648814,-151.0,0.00032,7]
[406834839,1772214648823,-264.648528,0.00032,7]
[406834840,1772214648833,-151.0,0.00032,7]
[406834841,1772214648842,-151.0,0.00032,7]
[406834842,1772214648851,-151.0,0.00032,7]
[406834843,1772214648860,-151.0,0.00032,7]
[406834844,1772214648870,-151.0,0.00032,7]
[406834845,1772214648879,-151.0,0.00032,7]
[406834846,1772214648888,-151.0,0.00032,7]
[406834847,1772214648898,-151.0,0.00032,7]
[406834848,1772214648907,-151.0,0.00032,7]
[406834849,1772214648916,-151.0,0.00032,7]
[406834850,1772214649060,-151.0,0.00032,7]
[406834851,1772214649071,-582.002275,0.00032,7]
[406834852,1772214649081,-582.002275,0.00032,7]
[406834853,1772214649090,-531.562921,0.00032,7]
[406834854,1772214649099,-582.002275,0.00032,7]
[406834855,1772214649108,-531.562921,0.00032,7]
[406834856,1772214649117,-582.002275,0.00032,7]
[406834857,1772214649126,-531.562921,0.00032,7]
[406834858,1772214649136,-531.562921,0.00032,7]
[406834859,1772214649145,-151.0,0.00032,7]
[406834860,1772214649155,-151.0,0.00032,7]
[406834861,1772214649164,-151.0,0.00032,7]
[406834862,1772214649173,-455.065068,0.00032,7]
[406834863,1772214649183,-151.0,0.00032,7]
[406834864,1772214649192,-455.065068,0.00032,7]
[406834865,1772214649202,-455.065068,0.00032,7]
[406834866,1772214649211,-455.065068,0.00032,7]
[406834867,1772214649220,-151.0,0.00032,7]
[406834868,1772214649230,-151.0,0.00032,7]
[406834869,1772214649239,-151.0,0.00032,7]
[406834870,1772214649248,-151.0,0.00032,7]
[406834871,1772214649258,-151.0,0.00032,7]
[406834872,1772214649267,-280.03725112,0.00032315,2]
[406834873,1772214649277,-2000.0,0.000327,2]
[406834874,1772214649286,-290.39862941,0.00032863,2]
[406834875,1772214649295,-151.0,0.00032877,31]
[406834876,1772214649305,-3238.36,0.000329,14]
[406834877,1772214649315,-3538.12,0.000329,14]
[406834878,1772214649324,-5093.99,0.000329,2]
[406834879,1772214649334,-1117.03,0.00033,14]
[406834880,1772214649343,-4838.14053136,0.00033,120]
[406834881,1772214649352,-150.0,0.00033043,2]
[406834882,1772214649362,-2000.0,0.000331,7]
[406834883,1772214649371,-347.52,0.000332,30]
[406834884,1772214649381,-150.36,0.00033333,30]
[406834885,1772214649390,-2593.11556322,0.00033339,2]
[406834886,1772214649400,-301.1433787,0.00033411,2]
[406834887,1772214649410,-2778.74,0.00033973,2]
[406834888,1772214649421,-2325.375,0.00034066,37]
[406834889,1772214649430,-275.383,0.00034066,37]
[406834890,1772214649439,-3238.36,0.000341,14]
[406834891,1772214649450,-3538.12,0.000341,14]
[406834892,1772214649459,-5093.99,0.000341,2]
[406834893,1772214649468,-509.0,0.00034423,19]
[406834894,1772214649476,-150.0,0.00034696,2]
[406834895,1772214649487,-1500.0,0.00034795,2]
[406834896,1772214649495,-1042.56,0.000349,30]
[406834897,1772214649505,-2000.0,0.00035,7]
[406834898,1772214649515,-200.0,0.00035,3]
[406834899,1772214649523,-2000.0,0.000353,7]
[406834900,1772214649533,-3498.0,0.0003538,2]
[406834901,1772214649541,-1340.0,0.0003538,2]
[406834902,1772214649550,-618.0,0.0003538,2]
[406834903,1772214649559,-4573.0,0.0003538,2]
[406834904,1772214649568,-413.0,0.0003538,2]
[406834905,1772214649577,-2456.0,0.0003538,2]
[406834906,1772214649587,-2000.0,0.000356,7]
[406834907,1772214649596,-150.36,0.00035616,30]
[406834908,1772214649605,-151.0,0.00035616,31]
[406834909,1772214649614,-151.0,0.00035616,31]
[406834910,1772214649623,-151.0,0.00035616,31]
[406834911,1772214649632,-3238.36,0.000358,14]
[406834912,1772214649641,-3538.12,0.000358,14]
[406834913,1772214649650,-5093.99,0.000358,2]
[406834914,1772214649660,-225.51659048,0.00035822,2]
[406834915,1772214649669,-500.0,0.00035899,120]
[406834916,1772214649679,-500.0,0.00036037,120]
[406834917,1772214649688,-500.0,0.00036037,120]
[406834918,1772214649697,-500.0,0.00036037,120]
[406834919,1772214649706,-500.0,0.00036037,120]
[406834920,1772214649715,-500.0,0.00036037,120]
[406834921,1772214649724,-500.0,0.00036037,120]
[406834922,1772214649734,-500.0,0.00036037,120]
[406834923,1772214649743,-500.0,0.00036037,120]
[406834924,1772214649752,-500.0,0.00036037,120]
[406834925,1772214649762,-500.0,0.00036037,120]
[406834926,1772214649771,-500.0,0.00036037,120]
[406834927,1772214649781,-500.0,0.00036037,120]
[406834928,1772214649790,-501.01,0.00036037,30]
[406834929,1772214649799,-501.01,0.00036037,30]
[406834930,1772214649807,-501.01,0.00036037,30]
[406834931,1772214649816,-501.01,0.00036037,30]
[406834932,1772214649825,-501.01,0.00036037,30]
[406834933,1772214649834,-501.01,0.00036037,30]
[406834934,1772214649843,-501.01,0.00036037,30]
[406834935,1772214649852,-647.78,0.00036037,120]
[406834936,1772214649861,-647.78,0.00036037,120]
[406834937,1772214649870,-647.78,0.00036037,120]
[406834938,1772214649880,-647.78,0.00036037,120]
[406834939,1772214649889,-647.78,0.00036037,120]
[406834940,1772214649897,-647.78,0.00036037,120]
[406834941,1772214649906,-500.0,0.00036037,120]
[406834942,1772214649916,-500.0,0.00036037,120]
[406834943,1772214649926,-170.4067714,0.00036037,120]
[406834944,1772214649935,-500.0,0.00036037,120]
[406834945,1772214649944,-500.0,0.00036037,120]
[406834946,1772214649953,-500.0,0.00036037,120]
[406834947,1772214649962,-500.0,0.00036037,120]
[406834948,1772214649971,-500.0,0.00036037,120]
[406834949,1772214649980,-500.0,0.00036037,120]
[406834950,1772214649989,-500.0,0.00036037,120]
[406834951,1772214649997,-596.4968816,0.00036037,120]
[406834952,1772214650008,-1000.0,0.00036175,2]
[406834953,1772214650018,-1000.0,0.00036175,2]
[406834954,1772214650028,-1000.0,0.00036175,2]
[406834955,1772214650037,-1000.0,0.00036175,2]
[406834956,1772214650047,-1000.0,0.00036175,2]
[406834957,1772214650056,-500.0,0.00036299,120]
[406834958,1772214650067,-500.0,0.00036299,120]
[406834959,1772214650078,-500.0,0.00036299,120]
[406834960,1772214650088,-186.56,0.00036299,120]
[406834961,1772214650098,-500.0,0.00036299,120]
[406834962,1772214650111,-500.0,0.00036299,120]
[406834963,1772214650121,-500.0,0.00036299,120]
[406834964,1772214650130,-500.0,0.00036299,120]
[406834965,1772214650142,-220.78,0.00036299,120]
[406834966,1772214650152,-2500.0,0.00036397,10]
[406834967,1772214650162,-1117.03,0.000364,14]
[406834968,1772214650171,-2000.0,0.000364,2]
[406834969,1772214650181,-2500.0,0.00036409,10]
[406834970,1772214650190,-25000.0,0.0003643,10]
[406834971,1772214650200,-150.0,0.0003643,2]
[406834972,1772214650209,-8677.79,0.00036463,10]
[406834973,1772214650219,-2000.0,0.000365,7]
[406834974,1772214650229,-868.8,0.000366,30]
[406834975,1772214650238,-3238.36,0.000366,14]
[406834976,1772214650247,-3538.12,0.000366,14]
[406834977,1772214650257,-5093.99,0.000366,2]
[406834978,1772214650266,-1698.94,0.00036715,10]
[406834979,1772214650275,-2500.0,0.00036717,10]
[406834980,1772214650284,-2852.75,0.00036793,10]
[406834981,1772214650294,-2000.0,0.000368,7]
[406834982,1772214650303,-174.00015664,0.00037,10]
[406834983,1772214650313,-1000.0,0.00037383,7]
[406834984,1772214650323,-150.36,0.00037899,30]
[406834985,1772214650333,-8449.58036887,0.000381,33]
[406834986,1772214650342,-150.0,0.00038252,2]
[406834987,1772214650351,-2593.11556322,0.0003826,2]
[406834988,1772214650361,-237.37622037,0.0003838,5]
[406834989,1772214650371,-3496.0,0.0003838,2]
[406834990,1772214650380,-4573.0,0.0003838,2]
[406834991,1772214650390,-2456.0,0.0003838,2]
[406834992,1772214650400,-3238.36,0.000384,14]
[406834993,1772214650411,-3538.12,0.000384,14]
[406834994,1772214650422,-5093.99,0.000384,30]
[406834995,1772214650432,-1118.5675,0.00038888,30]
[406834996,1772214650441,-385.96002226,0.00038904,5]
[406834997,1772214650452,-200.0,0.00039593,2]
[406834998,1772214650461,-16301.24,0.00039667,2]
[406834999,1772214650471,-501.01,0.00039699,30]
[406835000,1772214650480,-1117.03,0.000397,14]
[406835001,1772214650494,-269.0,0.00039834,2]
[406835002,1772214650505,-250.0,0.00039834,2]
[406835003,1772214650515,-156.0,0.0004,120]
[406835004,1772214650525,-155.0,0.0004,120]
[406835005,1772214650534,-166.99031988,0.0004,120]
[406835006,1772214650544,-9726.53849063,0.0004,120]
[406835007,1772214650553,-5036.29892714,0.0004,5]
[406835008,1772214650563,-1000.58,0.0004,120]
[406835009,1772214650573,-250.0,0.0004,7]
[406835010,1772214650585,-250.0,0.0004,7]
[406835011,1772214650596,-250.0,0.0004,7]
[406835012,1772214650606,-250.0,0.0004,7]
[406835013,1772214650615,-3238.36,0.0004,14]
[406835014,1772214650625,-250.0,0.0004,7]
[406835015,1772214650635,-3538.12,0.0004,14]
[406835016,1772214650645,-250.0,0.0004,7]
[406835017,1772214650654,-5093.99,0.0004,30]
[406835018,1772214650668,-180.0,0.0004,7]
[406835019,1772214650682,-157.49128306,0.0004,120]
[406835020,1772214650691,-174.00015664,0.0004,30]
[406835021,1772214650708,-956.71,0.0004,120]
[406835022,1772214650723,-4038.45,0.0004,120]
[406835023,1772214650733,-228.82236802,0.0004,120]
[406835024,1772214650750,-188.30763198,0.0004,120]
[406835025,1772214650762,-5632.2123259,0.0004,120]
[406835026,1772214650815,-208.689645,0.00027397,2]
[406835027,1772214650824,-208.689645,0.00027397,2]
[406835028,1772214650834,-208.689645,0.00032,7]
[406835029,1772214650844,-79.56828318,0.0004,120]
[406835030,1772214650855,-1310.6,0.0004,120]
[406835031,1772214650875,-7977.61939092,0.0004,120]
[406835032,1772214650885,-642.3,0.0004,120]
[406835033,1772214650895,-150.69,0.0004,2]
[406835034,1772214650908,-150.69,0.0004,2]
[406835035,1772214650918,-150.69,0.0004,2]
[406835036,1772214650927,-150.69,0.0004,2]
[406835037,1772214650937,-150.69,0.0004,2]
[406835038,1772214650946,-150.69,0.0004,2]
[406835039,1772214650956,-150.69,0.0004,2]
[406835040,1772214650965,-150.69,0.0004,2]
[406835041,1772214650976,-150.69,0.0004,2]
[406835042,1772214650986,-150.69,0.0004,2]
[406835043,1772214650995,-150.69,0.0004,2]
[406835044,1772214651008,-150.69,0.0004,2]
[406835045,1772214651018,-150.69,0.0004,2]
[406835046,1772214651027,-150.69,0.0004,2]
[406835047,1772214651037,-150.69,0.0004,2]
[406835048,1772214651046,-150.69,0.0004,2]
[406835049,1772214651055,-150.69,0.0004,2]
[406835050,1772214651066,-150.69,0.0004,2]
[406835051,1772214651076,-150.69,0.0004,2]
[406835052,1772214651086,-150.69,0.0004,2]
[406835053,1772214651096,-150.69,0.0004,2]
[406835054,1772214651105,-150.69,0.0004,2]
[406835055,1772214651114,-150.69,0.0004,2]
[406835056,1772214651124,-150.69,0.0004,2]
[406835057,1772214651133,-150.69,0.0004,2]
[406835058,1772214651143,-150.69,0.0004,2]
[406835059,1772214651153,-150.69,0.0004,2]
[406835060,1772214651163,-150.69,0.0004,2]
[406835061,1772214651172,-150.69,0.0004,2]
[406835062,1772214651182,-150.69,0.0004,2]
[406835063,1772214651191,-150.69,0.0004,2]
[406835064,1772214651200,-150.69,0.0004,2]
[406835065,1772214651210,-150.69,0.0004,2]
[406835066,1772214651220,-150.69,0.0004,2]
[406835067,1772214651230,-150.69,0.0004,2]
[406835068,1772214651239,-150.69,0.0004,2]
[406835069,1772214651249,-150.69,0.0004,2]
[406835070,1772214651262,-150.69,0.0004,2]
[406835071,1772214651271,-150.69,0.0004,2]
[406835072,1772214651281,-150.69,0.0004,2]
[406835073,1772214651290,-150.69,0.0004,2]
[406835074,1772214651302,-150.69,0.0004,2]
[406835075,1772214651311,-150.69,0.0004,2]
[406835076,1772214651320,-150.69,0.0004,2]
[406835077,1772214651330,-150.69,0.0004,2]
[406835078,1772214651339,-150.69,0.0004,2]
[406835079,1772214651348,-150.69,0.0004,2]
[406835080,1772214651357,-2000.0,0.000401,2]
[406835081,1772214651367,-150.0,0.00040165,2]
[406835082,1772214651376,-150.36,0.00040183,30]
[406835083,1772214651385,-647.78,0.00040299,120]
[406835084,1772214651394,-500.0,0.00040299,120]
[406835085,1772214651404,-15000.0,0.000403,120]
[406835086,1772214651415,-15000.0,0.000406,120]
[406835087,1772214651424,-35183.85801107,0.000407,6]
[406835088,1772214651433,-152.0,0.00040763,3]
[406835089,1772214651443,-3238.36,0.000409,14]
[406835090,1772214651453,-3538.12,0.000409,14]
[406835091,1772214651463,-5093.99,0.000409,30]
[406835092,1772214651472,-15000.0,0.000409,120]
[406835093,1772214651481,-509.0,0.00040934,25]
[406835094,1772214651492,-2473.82123685,0.00041,30]
[406835095,1772214651501,-11739.50497813,0.00041,120]
[406835096,1772214651511,-355.0,0.00041,90]
[406835097,1772214651519,-164.0,0.00041,90]
[406835098,1772214651528,-169.0,0.00041,90]
[406835099,1772214651537,-844.0,0.00041096,120]
[406835100,1772214651546,-300.0,0.00041096,10]
[406835101,1772214651555,-300.0,0.00041096,30]
[406835102,1772214651564,-300.0,0.00041096,30]
[406835103,1772214651573,-300.0,0.00041096,30]
[406835104,1772214651583,-300.0,0.00041096,30]
[406835105,1772214651721,-300.0,0.00041096,30]
[406835106,1772214651730,-300.0,0.00041096,30]
[406835107,1772214651739,-300.0,0.00041096,30]
[406835108,1772214651748,-300.0,0.00041096,30]
[406835109,1772214651758,-300.0,0.00041096,30]
[406835110,1772214651768,-300.0,0.00041096,30]
[406835111,1772214651777,-300.0,0.00041096,30]
[406835112,1772214651786,-300.0,0.00041096,30]
[406835113,1772214651794,-300.0,0.00041096,30]
[406835114,1772214651803,-300.0,0.00041096,30]
[406835115,1772214651812,-300.0,0.00041096,30]
[406835116,1772214651821,-300.0,0.00041096,30]
[406835117,1772214651830,-300.0,0.00041096,30]
[406835118,1772214651838,-300.0,0.00041096,30]
[406835119,1772214651847,-300.0,0.00041096,30]
[406835120,1772214651856,-300.0,0.00041096,30]
[406835121,1772214651865,-300.0,0.00041096,30]
[406835122,1772214651874,-300.0,0.00041096,30]
[406835123,1772214651884,-300.0,0.00041096,30]
[406835124,1772214651892,-300.0,0.00041096,30]
[406835125,1772214651901,-300.0,0.00041096,30]
[406835126,1772214651911,-300.0,0.00041096,30]
[406835127,1772214651919,-300.0,0.00041096,30]
[406835128,1772214651928,-300.0,0.00041096,30]
[406835129,1772214651937,-300.0,0.00041096,30]
[406835130,1772214651946,-300.0,0.00041096,30]
[406835131,1772214651955,-300.0,0.00041096,30]
[406835132,1772214651965,-300.0,0.00041096,30]
[406835133,1772214651974,-300.0,0.00041096,30]
[406835134,1772214651984,-300.0,0.00041096,30]
[406835135,1772214651993,-300.0,0.00041096,30]
[406835136,1772214652002,-300.0,0.00041096,30]
[406835137,1772214652012,-300.0,0.00041096,30]
[406835138,1772214652021,-300.0,0.00041096,30]
[406835139,1772214652030,-300.0,0.00041096,30]
[406835140,1772214652039,-300.0,0.00041096,30]
[406835141,1772214652048,-300.0,0.00041096,30]
[406835142,1772214652057,-300.0,0.00041096,30]
[406835143,1772214652067,-300.0,0.00041096,30]
[406835144,1772214652076,-300.0,0.00041096,30]
[406835145,1772214652086,-300.0,0.00041096,30]
[406835146,1772214652096,-300.0,0.00041096,30]
[406835147,1772214652107,-300.0,0.00041096,30]
[406835148,1772214652118,-300.0,0.00041096,30]
[406835149,1772214652127,-300.0,0.00041096,30]
[406835150,1772214652136,-300.0,0.00041096,30]
[406835151,1772214652145,-300.0,0.00041096,30]
[406835152,1772214652153,-300.0,0.00041096,30]
[406835153,1772214652162,-300.0,0.00041096,30]
[406835154,1772214652171,-300.0,0.00041096,30]
[406835155,1772214652180,-300.0,0.00041096,30]
[406835156,1772214652188,-300.0,0.00041096,30]
[406835157,1772214652197,-1258.86,0.00041096,120]
[406835158,1772214652206,-346.81,0.00041096,120]
[406835159,1772214652215,-151.0,0.00041096,120]
[406835160,1772214652223,-151.0,0.00041096,120]
[406835161,1772214652232,-151.0,0.00041096,120]
[406835162,1772214652240,-151.0,0.00041096,120]
[406835163,1772214652249,-151.0,0.00041096,120]
[406835164,1772214652259,-151.0,0.00041096,120]
[406835165,1772214652268,-151.0,0.00041096,120]
[406835166,1772214652277,-151.0,0.00041096,120]
[406835167,1772214652286,-151.0,0.00041096,120]
[406835168,1772214652295,-166.256705,0.00041096,120]
[406835169,1772214652303,-151.0,0.00041096,120]
[406835170,1772214652312,-172.746768,0.00041096,120]
[406835171,1772214652321,-160.0,0.00041096,2]
[406835172,1772214652329,-160.0,0.00041096,2]
[406835173,1772214652338,-160.0,0.00041096,2]
[406835174,1772214652346,-160.0,0.00041096,2]
[406835175,1772214652355,-160.0,0.00041096,2]
[406835176,1772214652363,-160.0,0.00041096,2]
[406835177,1772214652372,-151.0,0.00041096,120]
[406835178,1772214652381,-151.0,0.00041096,120]
[406835179,1772214652390,-160.0,0.00041096,2]
[406835180,1772214652398,-160.0,0.00041096,2]
[406835181,1772214652416,-151.0,0.00041096,120]
[406835182,1772214652427,-151.000023,0.00041096,120]
[406835183,1772214652438,-151.0,0.00041096,120]
[406835184,1772214652447,-151.0,0.00041096,120]
[406835185,1772214652458,-151.0,0.00041096,120]
[406835186,1772214652467,-151.0,0.00041096,120]
[406835187,1772214652477,-151.0,0.00041096,120]
[406835188,1772214652488,-151.0,0.00041096,120]
[406835189,1772214652497,-151.0,0.00041096,120]
[406835190,1772214652508,-151.0,0.00041096,120]
[406835191,1772214652516,-151.0,0.00041096,120]
[406835192,1772214652529,-162.934635,0.00041096,120]
[406835193,1772214652538,-151.0,0.00041096,120]
[406835194,1772214652547,-151.0,0.00041096,120]
[406835195,1772214652557,-151.0,0.00041096,120]
[406835196,1772214652566,-151.0,0.00041096,120]
[406835197,1772214652575,-151.0,0.00041096,120]
[406835198,1772214652584,-151.0,0.00041096,120]
[406835199,1772214652593,-154.016394,0.00041096,120]
[406835200,1772214652602,-245.634699,0.00041096,120]
[406835201,1772214652611,-245.634699,0.00041096,120]
[406835202,1772214652620,-273.913285,0.00041096,120]
[406835203,1772214652630,-245.634699,0.00041096,120]
[406835204,1772214652639,-245.634699,0.00041096,120]
[406835205,1772214652648,-245.634699,0.00041096,120]
[406835206,1772214652657,-245.634699,0.00041096,120]
[406835207,1772214652666,-245.634699,0.00041096,120]
[406835208,1772214652675,-245.634699,0.00041096,120]
[406835209,1772214652684,-151.0,0.00041096,120]
[406835210,1772214652693,-151.0,0.00041096,120]
[406835211,1772214652702,-151.0,0.00041096,120]
[406835212,1772214652711,-151.0,0.00041096,120]
[406835213,1772214652720,-151.0,0.00041096,120]
[406835214,1772214652729,-151.0,0.00041096,120]
[406835215,1772214652738,-151.0,0.00041096,120]
[406835216,1772214652746,-151.0,0.00041096,120]
[406835217,1772214652756,-279.592193,0.00041096,120]
[406835218,1772214652765,-151.0,0.00041096,30]
[406835219,1772214652775,-151.0,0.00041096,30]
[406835220,1772214652784,-151.0,0.00041096,30]
[406835221,1772214652793,-151.0,0.00041096,30]
[406835222,1772214652802,-151.0,0.00041096,120]
[406835223,1772214652811,-151.0,0.00041096,120]
[406835224,1772214652820,-171.876515,0.00041096,120]
[406835225,1772214652829,-151.0,0.00041096,120]
[406835226,1772214652839,-151.0,0.00041096,120]
[406835227,1772214652848,-241.644758,0.00041096,120]
[406835228,1772214652859,-287.710013,0.00041096,120]
[406835229,1772214652868,-182.532197,0.00041096,120]
[406835230,1772214652877,-182.532197,0.00041096,120]
[406835231,1772214652886,-182.532197,0.00041096,120]
[406835232,1772214652895,-182.532197,0.00041096,120]
[406835233,1772214652905,-182.532197,0.00041096,120]
[406835234,1772214652915,-182.532197,0.00041096,120]
[406835235,1772214652924,-182.532197,0.00041096,120]
[406835236,1772214652933,-182.532197,0.00041096,120]
[406835237,1772214652943,-151.0,0.00041096,120]
[406835238,1772214652953,-151.0,0.00041096,120]
[406835239,1772214652963,-151.0,0.00041096,120]
[406835240,1772214652972,-151.0,0.00041096,120]
[406835241,1772214652981,-151.0,0.00041096,120]
[406835242,1772214652990,-151.0,0.00041096,120]
[406835243,1772214653000,-151.0,0.00041096,120]
[406835244,1772214653012,-151.0,0.00041096,120]
[406835245,1772214653021,-151.0,0.00041096,120]
[406835246,1772214653030,-151.0,0.00041096,120]
[406835247,1772214653039,-207.865464,0.00041096,120]
[406835248,1772214653049,-151.0,0.00041096,120]
[406835249,1772214653059,-179.097087,0.00041096,120]
[406835250,1772214653068,-241.889116,0.00041096,120]
[406835251,1772214653078,-151.0,0.00041096,120]
[406835252,1772214653087,-151.0,0.00041096,120]
[406835253,1772214653096,-151.0,0.00041096,120]
[406835254,1772214653106,-151.0,0.00041096,120]
[406835255,1772214653115,-151.0,0.00041096,120]
[406835256,1772214653125,-151.0,0.00041096,30]
[406835257,1772214653135,-151.0,0.00041096,30]
[406835258,1772214653144,-151.0,0.00041096,30]
[406835259,1772214653153,-151.0,0.00041096,30]
[406835260,1772214653162,-151.0,0.00041096,30]
[406835261,1772214653171,-151.0,0.00041096,30]